Cogmind - Beta 15 @@@ ROGUE MODE // 2025.07.25 @ 23:59:55 Player: COGMINDER69 Result: Destroyed by D-53 Grenadier with Mini Grenade Launcher Performance ------------- Evolutions (0) 0 Regions Visited (2) 400 Robots Destroyed (28) 140 Value Destroyed (530) 530 Prototype IDs (0) 0 Alien Tech Used (0) 0 Bonus (0) 0 TOTAL SCORE: 1070 Bonus ------- None Cogmind --------- Core Integrity 0/250 Matter 238/300 Energy 160/160 System Corruption 0% Temperature Cool (0) Movement Treading (160) Location -10/Mines Parts ------- > --- POWER (1) -------- Light Nuclear Core > --- PROPULSION (2) --- Light Treads Light Treads > --- UTILITY (2) ------ Large Storage Unit Targeting Computer > --- WEAPON (2) ------- Light Assault Rifle > --- INVENTORY (15) --- Light Ion Engine Flight Unit Flight Unit Flight Unit Flight Unit Flight Unit ECM Suite Hacking Suite Datajack Peak State ------------ > --- POWER ------------ Light Nuclear Core > --- PROPULSION ------- Light Treads Light Treads > --- UTILITY ---------- Large Storage Unit Targeting Computer > --- WEAPON ----------- Assault Rifle Assault Rifle > --- INVENTORY -------- Ion Engine Light Ion Engine Flight Unit Flight Unit Flight Unit Flight Unit Flight Unit ECM Suite Light Assault Rifle Grenade Launcher Datajack [Rating: 10] Favorites ----------- Power Ion Engine Engine Ion Engine Power Core Light Nuclear Core Propulsion Light Treads Treads Light Treads Utility Targeting Computer Device Tractor Beam Storage Large Storage Unit Processor Targeting Computer Weapon Assault Rifle Energy Gun EM Pulse Gun Ballistic Gun Assault Rifle Launcher Grenade Launcher Build | -11 -10 -10 ------- Run | Yrd Mat Min Slots Evolved . | . . . Power . | . . . Propulsion . | . . . Utility . | . . . Weapon . | . . . Parts Attached 15 | 6 8 1 Power 3 | 1 2 . Engine 2 | 1 1 . Core 1 | . 1 . Reactor . | . . . Propulsion 2 | 2 . . Treads 2 | 2 . . Leg . | . . . Wheel . | . . . Hover . | . . . Flight . | . . . Utility 4 | 1 3 . Device 1 | . 1 . Storage 2 | 1 1 . Processor 1 | . 1 . Hackware . | . . . Protection . | . . . Artifact . | . . . Weapon 6 | 2 3 1 Energy Gun 1 | 1 . . Energy Cannon . | . . . Ballistic Gun 4 | 1 3 . Ballistic Cannon . | . . . Launcher 1 | . . 1 Special Weapon . | . . . Impact Weapon . | . . . Slashing Weapon . | . . . Piercing Weapon . | . . . Special Melee Weapon . | . . . Unidentified Prototypes . | . . . Parts Lost 4 | . 1 3 Power . | . . . Propulsion . | . . . Utility . | . . . Weapon 4 | . 1 3 Highest Loss Streak 3 | . 1 3 To Critical Strikes . | . . . Average Backups 9 | 2 8 10 Power 1 | 1 1 1 Propulsion 4 | 1 4 5 Utility 1 | . 1 2 Weapon 1 | . 1 1 Tool/Special . | . . . Unused Backups 14 | . 5 9 Power 1 | . . 1 Propulsion 8 | . 3 5 Utility 3 | . 1 2 Weapon 1 | . 1 . Tool/Special 1 | . . 1 Average Slot Usage (%) 98 | . 97 100 Engine 7 | . 10 . Core 6 | . 3 14 Treads 27 | . 27 28 Storage 14 | . 14 14 Processor 12 | . 11 14 Ballistic Gun 26 | . 26 27 Peak Build Rating 10 | 6 10 10 Average Rating 8 | 5 7 9 On Entrance 5 | . 6 10 Naked Turns . | . . . Heaviest Build 29 | 14 29 29 Greatest Support 40 | 40 40 40 Greatest Overweight (x) . | . . . Average Overweight (x) . | . . . Largest Inventory Capacity 15 | 8 15 15 Average Capacity 12 | 7 12 15 Most Carried 11 | 5 11 11 Average Carried 9 | 3 8 10 Final Capacity 15 | 8 15 15 Final Carried 11 | 5 11 9 Class Distribution -------------------- 100% | Mutant Dominant Class ---------------- Mutant | -10/Materials Mutant | -10/Mines Resources | -11 -10 -10 ----------- Run | Yrd Mat Min Matter Collected 709 | 266 417 26 Remotely 44 | . 44 . Salvage Created 888 | 100 721 67 Parts 61 | 3 49 9 Haulers Intercepted 1 | . 1 . Recyclers Shooed 2 | . . 2 Parts Field Recycled . | . . . Retrieved Matter . | . . . Parts Self-Destructed . | . . . Prevented . | . . . Kills | -11 -10 -10 ------- Run | Yrd Mat Min Combat Hostiles Destroyed 18 | . 14 4 Guns 18 | . 14 4 Classes Destroyed 9 | 1 7 1 Worker 1 | . 1 . Builder 2 | . 2 . Hauler 1 | . 1 . Recycler 2 | 1 1 . Operator 1 | . 1 . Watcher 3 | . 3 . Swarmer 9 | . 6 3 Grunt 8 | . 8 . Demolisher 1 | . . 1 Best Kill Streak 4 | 1 4 3 Combat Bots Only 3 | . 3 3 Max Kills in Single Turn 2 | 1 2 1 Gunslinging 1 | . 1 . Exploded . | . . . Melee . | . . . Uniques/NPCs Destroyed . | . . . Combat | -11 -10 -10 -------- Run | Yrd Mat Min Hostile Shots Fired 84 | . 64 20 Missed 14 | . 12 2 Hits 70 | . 52 18 Projectile 70 | . 52 18 AOE 12 | . . 12 Critical Strikes 3 | . 3 . Damage Taken 1153 | . 614 539 Core 259 | . 95 164 Absorbed by Shields . | . . . Regen/Repaired (Parts) 118 | . 118 . Core Remaining (%) 100 | 100 . . Volleys Fired 69 | 2 56 11 Largest 2 | 2 2 2 Hottest 60 | 60 40 50 Shots Fired 134 | 4 108 22 Gun 131 | 4 108 19 Cannon . | . . . Launcher 3 | . . 3 Special . | . . . Kinetic 129 | 2 108 19 Thermal . | . . . Explosive 3 | . . 3 Electromagnetic 2 | 2 . . Robot Hit Streak 10 | 4 10 9 Robot Miss Streak 4 | . 4 1 Penetration Max . | . . . Secondary Targets 2 | . 2 . Max Gunslinging Chain 1 | . 1 . Shots Hit Robots 93 | 4 74 15 Core Hits 45 | 2 33 10 Critical Kills 2 | 1 1 . Critical Parts Destroyed . | . . . Critical Strikes 2 | 1 1 . Destroy 2 | 1 1 . Melee Attacks . | . . . Impact . | . . . Slashing . | . . . Piercing . | . . . Sneak Attacks . | . . . Combat Hostiles . | . . . Follow-up Attacks . | . . . Damage Inflicted 1185 | 53 965 167 Guns 1157 | 53 963 141 Cannons . | . . . Explosions 23 | . . 23 Melee . | . . . Ramming 5 | . 2 3 Kinetic 1131 | 27 963 141 Thermal . | . . . Explosive 23 | . . 23 Electromagnetic 26 | 26 . . Impact . | . . . Slashing . | . . . Piercing . | . . . Highest Corruption . | . . . Average Corruption . | . . . Corruption Purged . | . . . Corruption Blocked . | . . . Overload Shots . | . . . Overflow Damage . | . . . Projectiles . | . . . Explosions . | . . . Melee . | . . . Knockbacks . | . . . Impact . | . . . Kinetic . | . . . Secondary . | . . . Self-Inflicted Damage 22 | . . 22 Shots 2 | . . 2 Rammed 4 | . 1 3 Targets Rammed 4 | . 1 3 Kicked . | . . . Crushed . | . . . Highest Temperature 26 | . 26 14 Average Temperature 9 | . 9 10 Received Heat Transfer 321 | . 321 . Siege Activations . | . . . Martial Activations . | . . . Shielding Activations . | . . . Robots Disrupted . | . . . Combat Hostiles . | . . . Robots Corrupted . | . . . Combat Hostiles . | . . . Parts Fried . | . . . Impact Corruptions . | . . . Robots Melted . | . . . Combat Hostiles . | . . . Parts Melted . | . . . Heat Transferred . | . . . Parts Sabotaged . | . . . Parts Stolen . | . . . Parts Stripped . | . . . Power Chain Reactions . | . . . Alert | -11 -10 -10 ------- Run | Yrd Mat Min Maximum Alert Level . | . . . Low Security (%) 100 | 100 100 100 Level 1 . | . . . Level 2 . | . . . Level 3 . | . . . Level 4 . | . . . Level 5 . | . . . High Security . | . . . Max Security . | . . . Peak Influence 145 | 5 145 97 Initial 47 | . . 47 Average 46 | . 62 20 Influence Increases 575 | 5 474 96 Destroy 0b10 Robot/C 360 | . 280 80 Destroy 0b10 Robot/NC 50 | 5 45 . Destroy Leader 88 | . 78 10 Successful Hack 25 | . 25 . Destroy Structure 7 | . 1 6 Lose Combat Pursuer 45 | . 45 . Influence Decreases 575 | 5 352 218 Entered New Map 75 | . . 75 Time Decay 470 | 5 342 123 Lost Part 30 | . 10 20 Squads Dispatched 4 | . 4 . Investigation 3 | . 3 . Extermination . | . . . Reinforcement 1 | . 1 . Assault . | . . . Garrison . | . . . Intercept . | . . . Searches Triggered . | . . . Construction Impeded . | . . . Haulers Reinforced . | . . . Active Scanning Responses . | . . . Cargo Convoy Interrupts . | . . . Stealth | -11 -10 -10 --------- Run | Yrd Mat Min Distress Signals 1 | . 1 . Communications Jammed . | . . . Distress Signals . | . . . Times Spotted 34 | . 22 12 Peak Tracking Total 17 | . 3 17 Tactical Retreats 3 | . 2 1 Traps | -11 -10 -10 ------- Run | Yrd Mat Min Traps Triggered 1 | . 1 . Indirectly . | . . . Trap Hack Attempts . | . . . Triggered . | . . . Disarmed . | . . . Reprogrammed . | . . . Reused . | . . . Traps Extracted . | . . . Installed . | . . . Triggered . | . . . Machines | -11 -10 -10 ---------- Run | Yrd Mat Min Machines Disabled . | . . . Max in Single Turn . | . . . Machines Repaired . | . . . Machines Dismantled . | . . . Machines Sabotaged . | . . . Overloaded Fab Kills . | . . . Hacking | -11 -10 -10 --------- Run | Yrd Mat Min Machines Accessed 6 | . 6 . Terminals 3 | . 3 . Fabricators . | . . . Repair Stations 1 | . 1 . Recycling Units 2 | . 2 . Scanalyzers . | . . . Garrison Access . | . . . Total Hacks 18 | . 18 . Successful 12 | . 12 . Failed 6 | . 6 . Catastrophic 1 | . 1 . Database Lockouts . | . . . Manual 11 | . 11 . Terminals 13 | . 13 . Fabricators . | . . . Repair Stations 2 | . 2 . Recycling Units 3 | . 3 . Scanalyzers . | . . . Garrison Access . | . . . Terminal Hacks 2 | . 2 . Locate Traps 1 | . 1 . Zone Layout 1 | . 1 . Fabricator Hacks . | . . . Repair Station Hacks 2 | . 2 . Scan Component 1 | . 1 . Repair 1 | . 1 . Recycling Unit Hacks 3 | . 3 . Report Inventory 3 | . 3 . Scanalyzer . | . . . Garrison Access Hacks . | . . . Unauthorized Hacks 5 | . 5 . Terminals 5 | . 5 . Track 1 | . 1 . Botnet 2 | . 2 . Operators 2 | . 2 . Fabricators . | . . . Repair Stations . | . . . Recycling Units . | . . . Scanalyzers . | . . . Garrison Access . | . . . Data Cores Recovered . | . . . Used . | . . . Hacking Detections 4 | . 4 . Full Trace Events 2 | . 2 . Feedback Events . | . . . Feedback Blocked . | . . . Robot Schematics Acquired . | . . . Robots Built . | . . . Authchips . | . . . Time . | . . . Total Robot Build Rating . | . . . Part Schematics Acquired . | . . . Parts Built . | . . . Authchips . | . . . Time . | . . . Total Part Build Rating . | . . . Parts Repaired 1 | . 1 . Time 26 | . 26 . Parts Recycled . | . . . Recycled Matter . | . . . Retrieved Matter . | . . . Retrieved Components . | . . . Parts Scanalyzed . | . . . Part Schematics Acquired . | . . . Parts Damaged . | . . . Bothacking | -11 -10 -10 ------------ Run | Yrd Mat Min Used RIF Installer . | . . . Robots Hacked . | . . . Non-combat . | . . . Combat . | . . . Robot Hacks Applied . | . . . Relay Couplers Released . | . . . Fabnet Peak Effective % . | . . . Robots Rewired . | . . . Allies Hacked . | . . . Hacks Repelled . | . . . Allies | -11 -10 -10 -------- Run | Yrd Mat Min Total Allies 3 | . . 3 Largest Group 3 | . . 3 Highest-Rated Group 40 | . . 40 Highest-Rated Ally 16 | . . 16 Total Orders . | . . . Ally Attacks 17 | . . 17 Total Damage 146 | . . 146 Kills 2 | . . 2 Allies Corrupted . | . . . Allies Melted . | . . . Intel | -11 -10 -10 ------- Run | Yrd Mat Min Active Infowar (turns) . | . . . Robot Analysis Total . | . . . Derelict Logs Recovered 1 | . . 1 Drone Launches . | . . . Drone Recoveries . | . . . Exploration | -11 -10 -10 ------------- Run | Yrd Mat Min Turns Passed 1755 | 92 1119 544 Spaces Moved 871 | 47 517 307 Core 2 | 2 . . Treads 869 | 45 517 307 Legs . | . . . Wheels . | . . . Hover . | . . . Flight . | . . . Fastest Speed 50 | 50 160 160 Average Speed 159 | 155 160 160 Slowest Speed 160 | 160 160 160 Overloaded Moves . | . . . Propulsion Burnouts . | . . . Robots Hopped . | . . . Potential Cave-ins . | . . . Cave-ins Triggered . | . . . Exploration Rate (%) 49 | 5 72 71 Regions Visited 2 Branch Regions 1 Pre-discovered Areas 1 | . . 1 Known Exits Taken . | . . . Unknown Exits Taken 2 | 1 1 . Scrap Searched 1 | . . 1 Spaces Dug . | . . . Terrain Destroyed 16 | . . 16 Melee . | . . . Projectile . | . . . AOE 16 | . . 16 Terrain Rammed . | . . . Walls Destroyed . | . . . Machines Disabled . | . . . Actions | -11 -10 -10 --------- Run | Yrd Mat Min Total 1096 | 59 701 336 Wait 110 | . 97 13 Move 869 | 46 516 307 Hop . | . . . Pick Up 16 | 5 11 . Fast Attach 11 | 6 5 . Attach 2 | . . 2 Detach . | . . . Swap 5 | . 5 . Drop 10 | . 10 . Fire 69 | 2 56 11 Melee . | . . . Ram . | . . . Kick . | . . . Crush 4 | . 1 3 Escape Stasis . | . . . Rewire . | . . . Trap . | . . . Miscellaneous . | . . . Route ------- -11/Scrapyard -10/Materials (discovered 3 exits: [*Mat x2] / [*Min]) -10/Mines (discovered 2 exits: [*Mat x2]) History --------- Turn | Location | Event 33 | -11/Scrapyard | Discovered new exit (range 15) 93 | -11/Scrapyard | Entered Materials 312 | -10/Materials | Build established: Mutant 503 | -10/Materials | Discovered new exit (range 3) 776 | -10/Materials | Discovered new exit (range 16) 1163 | -10/Materials | Repaired Lgt. Treads 1198 | -10/Materials | Discovered new exit (range 9) 1212 | -10/Materials | Entered Mines 1238 | -10/Mines | Discovered new exit (range 9) 1344 | -10/Mines | Discovered new exit (range 7) 1382 | -10/Mines | Learned location of Storage (-8) 1638 | -10/Mines | Assembled infested the area 1640 | -10/Mines | Assisted by bots powering up and referring to "LRC-V3" 1722 | -10/Mines | Lost 3 allies 1738 | -10/Mines | Core integrity fell below 50% 1750 | -10/Mines | Core integrity fell below 20% 1756 | -10/Mines | Destroyed by D-53 Grenadier with Mini Grenade Launcher Last Messages --------------- K-01 Serf collects debris. T-07 Excavator is excavating. D-53 Grenadier destroyed. T-07 Excavator is excavating. The unstable cave ceiling collapses. T-07 Excavator is excavating. Assault Rifle destroyed. The unstable cave ceiling collapses. T-07 Excavator is excavating. The unstable cave ceiling collapses. T-07 Excavator is excavating. The unstable cave ceiling collapses. U-05 Engineer lays Concrete. The unstable cave ceiling collapses. U-05 Engineer lays Concrete. The unstable cave ceiling collapses. Grenade Launcher destroyed. U-05 Engineer lays Concrete. U-05 Engineer builds a Wall. The unstable cave ceiling collapses. Map ----- +----------------------------------------------------+ | | | | | | | | | | | | | | | | | | | | | | | | | | | ?????????????????????????????????????? | | ????????????????????????#????????????? | | ???????????????????????# ????????????? | | ??????????????????????? ???????????? | | ??????######??????????? ???????????? | | ??????# #?????????? ???????????? | | ??????# t ?????????? ???????????? | | ??????# ####?????# ???????????? | | ??????# # ##???## ????????????? | | ??????# ##?## ????????????? | | ???????# #?# #????????????? | | ????????# #?# #????????????? | | ????????# @ #?# #??########### | | ????????# #?# #### # | | ???????# #### ## | | ???????# # ## | | ???????## d ### ## | | ????????# ##?# ## ######### | | ????????## ##?## #######???????# | | ??????### ### ##????????????? | | ?????## #### ## " ##???????????? | | ?????# ### "%" #???????????? | | ?????# #???????????? | | ?????## ##???????????? | | ??????## #### #????????????? | | ???????## ##??## #????????????# | | ????????## #????## #??????????## | | ????????## #?????? ??????????# | | ??####### ##?????? = #?????????# | | ??# ##??????? #????????## | | ??# ##????????# ##?????????# | | ??# ### #?????????? ##??????????# | | ??# #?## ##?????????? #???????????# | | ??# #??####??????????? #???????????# | | ??# #?????????????????? ????????????# | | ??# #???????????????????????????????? | | ??# #???????????????????????????????? | +----------------------------------------------------+ Best States ------------- Heat Dissipation 25 Energy Generation 14 Energy Capacity 250 Matter Stores 300 Matter Capacity 300 Sight Range 16 Terrain Scan Density 10 Evasion (%) 40 Targeting Accuracy 5 Recoil Reduction 2 Item Schematics ----------------- None Robot Schematics ------------------ None Fabricated ------------ Nothing Repaired ---------- Lgt. Treads | 15% | -10/Materials Alien Tech Used ----------------- None Achievements -------------- Slippery One Challenges ------------ None Game ------ Seed ThrowingCompanionAutohacker Manual? 0 Play Time 00:18:13 Cumulative 11.5 hours Start 2025.07.25 @ 23:40:02 End 2025.07.25 @ 23:59:55 Sessions 1 Manual Loads 0 Difficulty Rogue Special Mode None Game No. 23 Rogue 23 Adventurer 0 Explorer 0 Win Type - Total 0 Types 0/0/0/0/0/0/0/0/0/0 Lore% 8 Gallery% 15 Achievement% 20 Wizard Run 0 Options --------- Layout 0 ASCII 0 Keyboard 0 Movement Mouse Keybinds 0 Fullscreen 2 Font 24/Smallcaps Map View 76x50 Zoom Use 0% Tactical HUD 0 Map Filters NONE Filters NONE Steam 1 RUN: fe30b0e3-e250-4fad-bfcf-47e9785816ec